bitfinex-derivatives/quotes_ETHF0:USTF0_20250327
["timestamp","ask_amount","ask_price","bid_price","bid_amount"]
[1743112946937,5.08563808,2018.8,2018.6,0.99096]
[1743112946938,0.92833808,2018.8,2018.6,0.99096]
[1743112947138,2.92701,2019.2,2019.1,0.99071]
[1743112947334,3.235,2019.4,2019.0,3.2078]
[1743112947529,0.99086,2018.8,2018.7,3.2078]
[1743112948440,2.43306,2018.8,2018.7,3.2078]
[1743112950040,0.99101,2018.5,2018.4,3.2078]
[1743112950231,1.4422,2018.7,2018.6,0.99096]
[1743112950431,3.21275061,2019.0,2018.4,3.2078]
[1743112950432,0.00495061,2019.0,2018.5,0.9359]
[1743112950628,0.99096,2018.6,2018.5,3.2078]
[1743112950835,0.99096,2018.6,2018.5,4.19881]
[1743112951035,0.99095,2018.7,2018.5,4.19881]
[1743112951235,0.00495061,2019.0,2018.5,5.68531]
[1743112951436,4.22983,2018.9,2018.8,4.19865]
[1743112952144,4.22983,2018.9,2018.8,3.2078]
[1743112952337,0.99096,2018.6,2018.5,3.2078]
[1743112952544,1.4023,2018.8,2018.5,3.2078]
[1743112952747,3.25,2018.9,2018.5,3.2078]
[1743112952938,0.99096,2018.6,2018.5,3.2078]
[1743112953142,4.24596,2018.6,2018.5,3.2078]
[1743112953945,0.00495061,2019.0,2018.5,3.2078]
[1743112954145,0.00495061,2019.0,2018.9,0.99081]
[1743112954439,0.99081,2018.9,2018.6,1.9619]
[1743112954647,0.99091,2018.7,2018.6,1.9619]
[1743112955345,2.32841,2018.7,2018.6,1.9619]
[1743112956748,0.99096,2018.6,2018.5,3.2078]
[1743112956944,0.00495061,2019.0,2018.5,5.68524]
[1743112957148,0.99096,2018.6,2018.5,3.2078]
[1743112957546,4.27294,2018.7,2018.5,3.2078]
[1743112957853,0.99086,2018.8,2018.7,0.99088]
[1743112958049,0.99096,2018.6,2018.5,3.2078]
[1743112958242,4.27996,2018.6,2018.5,3.2078]
[1743112958649,6.28896,2018.6,2018.5,3.2078]
[1743112960057,3.30195061,2019.0,2018.7,0.99089]
[1743112960251,3.87115,2018.9,2018.5,3.2078]
[1743112960457,0.99093,2018.7,2018.5,3.2078]
[1743112960655,1.3941,2018.8,2018.5,3.2078]
[1743112960857,5.68696,2018.8,2018.7,0.99091]
[1743112961152,5.68696,2018.8,2018.6,0.99096]
[1743112961360,0.99096,2018.6,2018.5,3.2078]
[1743112961547,2.37912,2018.7,2018.6,0.99096]
[1743112961754,3.305,2018.8,2018.5,3.2078]
[1743112961955,0.99094,2018.7,2018.6,1.93605]
[1743112962162,0.99096,2018.6,2018.5,3.2078]
[1743112963454,2.37915,2018.7,2018.5,3.2078]
[1743112963649,3.32,2018.8,2018.6,2.3211]
[1743112963850,5.68686,2018.8,2018.7,1.3192]
[1743112966462,0.99096,2018.6,2018.5,3.2078]
[1743112967657,0.99096,2018.6,2018.5,4.5581]
[1743112971361,7.80205,2018.9,2018.5,4.5581]
[1743112971560,2.38416,2018.6,2018.5,3.2078]
[1743112972068,0.9909,2018.8,2018.7,0.99091]
[1743112972362,1.3932,2018.8,2018.5,3.2078]
[1743112972664,0.99095,2018.7,2018.6,0.99095]
[1743112972864,2.48192061,2019.0,2018.5,3.2078]
[1743112973057,0.99087,2018.8,2018.7,0.99088]
[1743112973560,2.37547,2018.8,2018.7,0.99088]
[1743112974462,2.37547,2018.8,2018.7,0.99091]
[1743112974463,2.37549,2018.8,2018.7,0.99091]
[1743112974664,1.3846,2018.8,2018.7,0.99091]
[1743112974866,2.37546,2018.8,2018.7,0.99091]
[1743112975364,0.99092,2018.7,2018.6,0.99092]
[1743112975567,2.3755,2018.8,2018.7,0.99091]
[1743112975965,0.99091,2018.7,2018.6,0.65855218]
[1743112976266,3.21791,2018.7,2018.6,0.65855218]
[1743112976467,0.99096,2018.6,2018.5,4.19881]
[1743112976670,0.9632,2018.9,2018.5,3.2078]
[1743112976965,1.3013,2018.8,2018.6,0.99096]
[1743112977363,0.99091,2018.7,2018.6,0.99096]
[1743112977663,0.99088,2018.8,2018.7,0.99091]
[1743112977865,0.00495061,2019.0,2018.6,2.4774]
[1743112978168,0.99575061,2019.0,2018.9,0.99081]
[1743112978360,1.30625061,2019.0,2018.7,0.65937221]
[1743112978560,0.99082,2018.9,2018.8,4.19862]
[1743112980271,2.29704061,2019.0,2018.9,0.99081]
[1743112980567,0.99081,2018.9,2018.8,3.2078]
[1743112980862,0.00495061,2019.0,2018.9,0.99081]
[1743112981265,0.00495061,2019.0,2018.8,3.2078]
[1743112981459,0.00495061,2019.0,2018.9,0.99081]
[1743112981968,0.99571061,2019.0,2018.9,0.99081]
[1743112982163,0.99081,2018.9,2018.8,4.19862]
[1743112982362,1.3586,2018.9,2018.8,4.85758974]
[1743112982564,2.34941,2018.9,2018.8,4.85758974]
[1743112982867,0.00495061,2019.0,2018.9,0.99081]
[1743112983866,0.00495061,2019.0,2018.9,1.71208893]
[1743112984568,0.00495061,2019.0,2018.9,2.37063005]
[1743112985165,0.00495061,2019.0,2018.9,3.38493005]
[1743112987175,0.00495061,2019.0,2018.9,4.69903005]
[1743112988579,0.00495061,2019.0,2018.9,3.97775112]
[1743112989378,0.00495061,2019.0,2018.9,4.69819156]
[1743112989673,0.00495061,2019.0,2018.9,3.97775112]
[1743112993369,0.00495061,2019.0,2018.9,2.96345112]
[1743112993579,0.00495061,2019.0,2018.9,3.24911]
[1743112993963,0.99571061,2019.0,2018.9,3.24911]
[1743112994163,0.00495061,2019.0,2018.9,3.24911]
[1743112995671,1.37615061,2019.0,2018.9,4.26771]
[1743113003776,1.37615061,2019.0,2018.9,7.47551]
[1743113005085,1.37615061,2019.0,2018.9,8.13462875]
[1743113006579,1.37615061,2019.0,2018.9,8.8569477]
[1743113006772,2.36691061,2019.0,2018.9,3.86691875]
[1743113006978,3.31581061,2019.0,2018.9,3.86691875]
[1743113007178,3.31581061,2019.0,2018.9,3.2078]
[1743113007882,0.99096,2018.6,2018.5,3.2078]
[1743113008076,0.99106,2018.4,2018.3,0.99849808]
[1743113008281,0.99099,2018.6,2018.5,0.99101]
[1743113008483,4.7366,2018.6,2018.5,4.19881]
[1743113008886,6.67646,2018.6,2018.5,4.19881]
[1743113009086,6.67646,2018.6,2018.5,5.53091]
[1743113009977,6.67646,2018.6,2018.5,3.2078]
[1743113010181,0.99106,2018.4,2018.3,0.00743808]
[1743113010889,2.37556,2018.4,2018.3,0.00743808]
[1743113019597,2.37556,2018.4,2017.9,0.99128]
[1743113019598,1.3845,2018.4,2017.9,0.99128]
[1743113019799,0.9914,2017.7,2017.6,4.1883]
[1743113019995,0.99132,2017.9,2017.8,0.99132]
[1743113020199,2.31642,2017.9,2017.8,0.99132]
[1743113020602,2.31642,2017.9,2017.8,2.31932]
[1743113021599,2.31642,2017.9,2017.8,1.328]
[1743113023008,3.28602,2017.9,2017.8,1.328]
[1743113024096,2.2947,2017.9,2017.6,3.21523808]
[1743113024302,0.9914,2017.7,2017.6,4.56473808]
[1743113024497,0.9914,2017.7,2017.6,3.21523808]
[1743113024498,4.2784,2017.7,2017.6,3.21523808]
[1743113024697,6.7784,2017.7,2017.6,0.00743808]
[1743113024903,0.9914,2017.7,2017.6,0.00743808]
[1743113025095,2.4287,2017.7,2017.6,0.00743808]
[1743113025298,2.4287,2017.7,2017.6,1.33733808]
[1743113025800,5.7167,2017.7,2017.6,0.00743808]
[1743113027300,5.7167,2017.7,2017.6,1.33733808]
[1743113031307,5.7167,2017.7,2017.6,0.00743808]
[1743113031609,4.2794,2017.7,2017.6,0.00743808]
[1743113031810,4.2794,2017.7,2017.6,1.36783808]
[1743113032606,4.2794,2017.7,2017.6,0.00743808]
[1743113033009,5.6044,2017.7,2017.6,0.00743808]
[1743113035605,5.6044,2017.7,2016.3,8.61962396]
[1743113035606,0.99165,2017.2,2017.1,1.3119]
[1743113036299,2.39725,2017.2,2017.1,1.3119]
[1743113036705,3.35795,2017.2,2017.1,1.3119]
[1743113037113,3.35795,2017.2,2017.1,2.235]
[1743113037307,3.35795,2017.2,2017.1,1.3119]
[1743113038913,4.30515,2017.2,2017.1,1.3119]
[1743113041516,3.35795,2017.2,2017.1,1.3119]
[1743113042321,2.39725,2017.2,2017.1,1.3119]
[1743113044017,0.99175,2017.0,2016.9,0.00743808]
[1743113044315,4.26475,2017.0,2016.9,0.00743808]
[1743113044813,5.57235,2017.0,2016.9,0.00743808]
[1743113045208,8.78015,2017.0,2016.9,0.00743808]
[1743113050022,11.28015,2017.0,2016.9,8.08e-06]
[1743113050323,11.36163049,2017.0,2016.9,8.08e-06]
[1743113051315,8.08863049,2017.0,2016.9,8.08e-06]
[1743113051521,11.35863049,2017.0,2016.9,8.08e-06]
[1743113053027,11.35863388,2017.0,2016.9,8.08e-06]
[1743113054331,11.35863497,2017.0,2016.9,8.08e-06]
[1743113057224,0.99199,2016.5,2016.4,1.3759]
[1743113057524,4.25399,2016.5,2016.4,1.3759]
[1743113057724,4.25399,2016.5,2016.4,2.3397]
[1743113057920,10.62696,2016.5,2016.1,0.944]
[1743113058129,0.99209,2016.3,2016.2,1.4062]
[1743113058526,2.42729,2016.3,2016.2,1.4062]
[1743113069333,0.99214,2016.2,2016.1,0.00743808]
[1743113069640,5.61354,2016.2,2016.1,1.39743808]
[1743113070334,5.61354,2016.2,2016.1,2.34143808]
[1743113070638,4.24314,2016.2,2016.1,2.34143808]
[1743113087949,5.61634,2016.2,2016.1,2.34143808]
[1743113088848,0.99214,2016.2,2016.1,2.34143808]
[1743113089050,0.99214,2016.2,2016.1,6.27556128]
[1743113089356,0.99211,2016.3,2016.2,0.99212]
[1743113089557,0.99211,2016.3,2016.2,4.1296432]
[1743113090151,0.99946808,2016.5,2016.4,0.99204]
[1743113090356,0.99946808,2016.5,2016.4,4.92533619]
[1743113090752,0.99946808,2016.5,2016.4,5.85123619]
[1743113091157,0.99946808,2016.5,2016.4,6.51427048]
[1743113091456,0.99946808,2016.5,2016.4,5.78877429]
[1743113093057,0.99946808,2016.5,2016.4,5.85062201]
[1743113093257,0.99946808,2016.5,2016.4,6.51254007]
[1743113093655,0.00743808,2016.5,2016.4,9.01254007]
[1743113093954,0.99198,2016.6,2016.5,0.99199]
[1743113094161,0.99198,2016.6,2016.5,3.1208651]
[1743113094461,0.99198,2016.6,2016.5,3.78279007]
[1743113094759,0.99192,2016.7,2016.6,0.99191]
[1743113094951,0.99192,2016.7,2016.6,3.34361]
[1743113095356,0.00743808,2016.8,2016.7,0.99189]
[1743113095556,0.99927808,2016.8,2016.7,5.58519]
[1743113096657,0.00743808,2016.8,2016.7,5.58519]
[1743113097054,0.9917,2017.2,2016.8,2.47951]
[1743113097253,0.9917,2017.1,2017.0,3.2078]
[1743113097464,0.9917,2017.1,2017.0,5.0977]
[1743113097654,0.99168,2017.2,2017.0,5.0977]
[1743113097960,0.99168,2017.2,2017.1,1.4355]
[1743113098660,0.99168,2017.2,2017.1,2.42715]
[1743113100358,2.47933,2017.1,2016.7,3.2078]
[1743113100655,0.99181,2016.9,2016.8,0.9918]
[1743113101766,0.99184,2016.8,2016.7,4.19966]
[1743113101965,0.99184,2016.8,2016.7,4.19969]
[1743113108268,0.99184,2016.8,2016.7,3.2078]
[1743113108673,0.99184,2016.8,2016.7,4.19969]
[1743113113168,2.36504,2016.9,2016.8,0.99184]
[1743113113761,2.36504,2016.9,2016.7,4.19965]
[1743113113762,0.99184,2016.8,2016.7,4.19965]
[1743113113966,3.36674,2016.8,2016.7,3.2078]
[1743113118467,0.99194,2016.6,2016.5,2.37628]
[1743113118665,0.99194,2016.6,2016.5,1.3843]
[1743113119165,2.30744,2016.6,2016.5,1.3843]
[1743113126276,0.99199,2016.5,2016.4,3.2078]
[1743113126481,3.28479,2016.5,2016.4,3.2078]
[1743113126885,0.99209,2016.3,2016.2,1.4096]
[1743113127677,1.90969,2016.3,2016.2,1.4096]
[1743113131177,5.15069,2016.3,2016.2,1.4096]
[1743113131380,0.99214,2016.2,2016.1,0.00743808]
[1743113131582,3.30064,2016.2,2016.1,0.00743808]
[1743113131777,0.99219,2016.1,2016.0,3.2078]
[1743113131977,2.34139,2016.1,2016.0,3.2078]
[1743113132380,0.99234,2015.8,2015.7,3.2078]
[1743113132679,0.99234,2015.8,2015.7,4.92505799]
[1743113133088,0.99234,2015.8,2015.7,5.58702839]
[1743113133388,0.99234,2015.8,2015.7,4.8621504]
[1743113133591,2.34154,2015.8,2015.7,6.2556504]
[1743113134983,2.34154,2015.8,2015.7,5.2632704]
[1743113135172,2.34154,2015.8,2015.7,6.2556504]
[1743113135375,2.34154,2015.8,2015.7,5.59368]
[1743113139279,2.34154,2015.8,2015.7,2.38588]
[1743113140675,2.34154,2015.8,2015.7,1.3935]
[1743113141690,2.34154,2015.8,2015.7,2.38588]
[1743113142092,2.34154,2015.8,2015.7,1.3935]
[1743113143494,3.2078,2016.3,2015.7,1.3935]
[1743113143690,0.99234,2015.9,2015.8,0.99232]
[1743113143890,0.99234,2015.9,2015.8,2.33912]
[1743113144091,2.29794,2015.9,2015.8,2.33912]
[1743113146495,1.0031,2016.2,2016.0,0.99219]
[1743113146696,1.0031,2016.2,2016.1,1.3893]
[1743113146697,5.53694,2016.2,2016.1,1.3893]
[1743113148195,0.99224,2016.0,2015.9,0.9386]
[1743113148395,0.99229,2015.9,2015.8,2.38161]
[1743113148697,2.29509,2015.9,2015.8,2.38161]
[1743113150494,2.29509,2015.9,2015.8,1.3893]
[1743113150997,2.29509,2015.9,2015.8,2.38164]
[1743113151200,2.29509,2015.9,2015.8,1.3893]
[1743113152095,2.29509,2015.9,2015.8,2.38164]
[1743113152295,2.29509,2015.9,2015.8,1.3893]
[1743113152492,2.29509,2015.9,2015.8,2.38164]
[1743113155000,2.29509,2015.9,2015.8,1.3893]
[1743113155298,2.29509,2015.9,2015.8,2.38164]
[1743113156797,2.29509,2015.9,2015.8,2.05254444]
[1743113157502,2.29509,2015.9,2015.8,2.38164]
[1743113158704,2.29509,2015.9,2015.8,3.04520055]
[1743113159203,2.29509,2015.9,2015.8,6.25300055]
[1743113161403,2.29509,2015.9,2015.8,6.98049032]
[1743113161701,2.29509,2015.9,2015.8,5.98815032]
[1743113161901,2.29509,2015.9,2015.8,6.98049032]
[1743113162502,2.29509,2015.9,2015.8,5.98815032]
[1743113162898,2.29509,2015.9,2015.8,6.98049032]
[1743113164601,2.29509,2015.9,2015.8,5.98815032]
[1743113165107,2.29509,2015.9,2015.8,6.98049032]
[1743113165604,2.29509,2015.9,2015.8,5.98815032]
[1743113168003,2.29509,2015.9,2015.8,5.98826404]
[1743113168209,2.29509,2015.9,2015.8,5.26066055]
[1743113168704,2.29509,2015.9,2015.8,5.98826631]
[1743113170910,5.53609,2015.9,2015.8,5.98826631]
[1743113173105,5.53609,2015.9,2015.8,2.05286055]
[1743113175316,5.53609,2015.9,2015.8,3.04520055]
[1743113175513,5.53609,2015.9,2015.8,6.25300055]
[1743113175716,5.53609,2015.9,2015.8,5.26066055]
[1743113175917,5.53609,2015.9,2015.8,6.25300055]
[1743113176316,0.99229,2015.9,2015.8,5.26066055]
[1743113176514,0.99229,2016.0,2015.9,0.99223]
[1743113176716,0.99229,2016.0,2015.9,3.12358858]
[1743113176912,0.99229,2016.0,2015.9,3.78714913]
[1743113177916,0.99219,2016.2,2016.1,0.99214]
[1743113178124,2.48757808,2016.4,2016.1,7.58017904]
[1743113178125,3.24843808,2016.4,2016.1,7.58017904]
[1743113178319,4.24052808,2016.4,2016.3,0.99209]
[1743113178615,0.99952808,2016.4,2016.3,2.38340567]
[1743113178811,0.99952808,2016.4,2016.3,5.13060567]
[1743113179011,2.38842808,2016.4,2016.3,5.13060567]
[1743113179616,0.99952808,2016.4,2016.3,5.13060567]
[1743113179823,2.38842808,2016.4,2016.3,5.13060567]
[1743113180422,2.38842808,2016.4,2016.3,4.40285055]
[1743113182124,2.38842808,2016.4,2016.3,3.73929]
[1743113183323,2.38842808,2016.4,2016.3,4.40188198]
[1743113184220,0.99952808,2016.4,2016.3,3.73929]
[1743113187133,0.00743808,2016.4,2016.3,3.73929]
[1743113187321,0.99947808,2016.4,2016.3,3.73929]
[1743113197841,2.39567808,2016.4,2016.3,3.73929]
[1743113198944,2.39567808,2016.4,2016.3,6.94709]
[1743113202549,2.39567808,2016.4,2016.3,7.60960021]
[1743113205251,2.39567808,2016.4,2016.3,8.33613547]
[1743113206743,0.99243,2015.7,2015.5,6.46360196]
[1743113206946,0.99243,2015.7,2015.6,4.63954025]
[1743113207150,0.99243,2015.7,2015.6,5.70258728]
[1743113207353,0.99243,2015.7,2015.6,6.69494728]
[1743113207751,0.99238,2015.8,2015.7,0.99234]
[1743113207952,0.99238,2015.8,2015.7,3.13679449]
[1743113208150,0.99238,2015.8,2015.7,5.35815006]
[1743113208357,0.99238,2015.8,2015.7,4.19984152]
[1743113209348,0.99238,2015.8,2015.7,3.13679449]
[1743113211863,0.99238,2015.8,2015.7,3.13567468]
[1743113213658,0.99238,2015.8,2015.7,3.1353749]
[1743113213964,0.99238,2015.8,2015.7,2.41284]
[1743113214464,0.99238,2015.8,2015.7,2.41288]
[1743113216861,0.99238,2015.8,2015.7,1.4205]
[1743113217255,2.35858,2015.8,2015.7,2.41288]
[1743113217761,2.35858,2015.8,2015.7,1.4205]
[1743113217952,2.35858,2015.8,2015.7,2.41288]
[1743113218958,2.35858,2015.8,2015.7,1.4205]
[1743113219261,2.35858,2015.8,2015.7,2.41288]
[1743113220956,2.35858,2015.8,2015.7,1.4205]
[1743113221157,2.35858,2015.8,2015.7,2.41288]
[1743113226264,2.35858,2015.8,2015.7,1.4205]
[1743113226462,2.35858,2015.8,2015.7,2.41288]
[1743113228267,2.35858,2015.8,2015.7,1.4205]
[1743113228966,0.99243,2015.6,2015.5,0.00743808]
[1743113229362,0.99243,2015.6,2015.5,1.33973808]
[1743113229566,3.10813,2015.6,2015.5,1.33973808]
[1743113233570,2.38943,2015.6,2015.5,1.33973808]
[1743113235167,2.38943,2015.6,2015.5,2.33221808]
[1743113235367,2.38943,2015.6,2015.5,1.33973808]
[1743113236571,2.38943,2015.6,2015.5,1.99919627]
[1743113236774,2.38943,2015.6,2015.5,2.99167627]
[1743113237770,0.99235,2015.9,2015.8,0.99228]
[1743113238766,0.99234,2015.8,2015.7,2.39315]
[1743113239074,0.99234,2015.8,2015.7,3.1170474]
[1743113239475,0.99234,2015.8,2015.7,3.77629193]
[1743113240272,0.99234,2015.8,2015.7,6.98409193]
[1743113240974,0.99227,2016.0,2015.9,0.99224]
[1743113242571,0.99227,2016.0,2015.9,1.65131245]
[1743113243869,0.99227,2016.0,2015.9,0.99224]
[1743113244071,2.31214,2016.1,2016.0,0.99224]
[1743113244266,7.7981,2016.2,2016.1,0.99219]
[1743113244267,8.12498,2016.2,2016.1,0.99219]
[1743113244478,8.79138,2016.2,2016.1,0.99219]
[1743113246369,4.19998,2016.2,2016.1,0.99219]
[1743113247578,5.63538,2016.2,2016.1,0.99219]
[1743113249279,2.42758,2016.2,2016.1,0.99219]
[1743113251276,0.99219,2016.1,2016.0,2.377]
[1743113251479,2.34119,2016.1,2016.0,2.377]
[1743113251681,0.99219,2016.1,2016.0,2.377]
[1743113257387,0.99219,2016.1,2016.0,1.4314]
[1743113257595,1.65399,2016.1,2016.0,2.42364]
[1743113259992,1.65399,2016.1,2016.0,1.4314]
[1743113260389,1.65399,2016.1,2016.0,2.42364]
[1743113267689,1.65399,2016.1,2016.0,1.4314]
[1743113267888,1.65399,2016.1,2016.0,2.42364]
[1743113268096,1.65399,2016.1,2016.0,1.4314]
[1743113268300,1.65399,2016.1,2016.0,2.42364]
[1743113269398,1.65399,2016.1,2016.0,2.09103389]
[1743113269903,1.65399,2016.1,2016.0,3.08327389]
[1743113270090,1.65399,2016.1,2016.0,2.09103389]
[1743113273397,0.99219,2016.1,2016.0,3.08327389]
[1743113273602,0.99219,2016.1,2016.0,3.80781474]
[1743113274103,0.99219,2016.1,2016.0,3.80778681]
[1743113277896,0.99219,2016.1,2016.0,3.08327389]
[1743113278207,0.99219,2016.1,2016.0,3.8078719]
[1743113279911,0.99219,2016.1,2016.0,3.80787888]
[1743113280106,0.99219,2016.1,2016.0,4.86369355]
[1743113281200,0.99219,2016.1,2016.0,4.86372246]
[1743113282412,0.99219,2016.1,2016.0,2.81566779]
[1743113282709,0.99243,2015.6,2015.5,4.20770808]
[1743113282907,0.99243,2015.6,2015.5,5.35909002]
[1743113283108,0.99243,2015.6,2015.5,5.3592087]
[1743113283318,0.99243,2015.6,2015.5,4.92630808]
[1743113284012,0.99243,2015.6,2015.5,6.28020808]
[1743113284399,3.04733,2015.7,2015.6,0.99243]
[1743113284603,2.36143,2015.7,2015.6,2.34633]
[1743113284802,0.99243,2015.7,2015.6,2.34633]
[1743113285609,2.36143,2015.7,2015.6,2.34633]
[1743113289211,2.36143,2015.7,2015.6,1.3539]
[1743113290614,2.36143,2015.7,2015.6,2.34633]
[1743113293514,4.20006,2016.0,2015.9,0.99229]
[1743113293705,0.99226,2016.0,2015.9,0.99229]
[1743113294411,0.99226,2016.0,2015.9,2.31439]
[1743113296416,0.6949,2016.2,2015.9,1.3221]
[1743113296608,0.99948808,2016.4,2016.3,0.99209]
[1743113296803,0.00743808,2016.4,2016.3,0.99209]
[1743113297207,6.0762708,2017.1,2016.5,2.47989]
[1743113297514,0.99178,2017.0,2016.9,0.99175]
[1743113297711,2.41208,2017.0,2016.9,0.99175]
[1743113298514,0.99178,2017.0,2016.9,0.99175]
[1743113300810,0.99178,2017.0,2016.9,2.42995]
[1743113302011,0.99178,2017.0,2016.9,5.63775]
[1743113302210,2.0777,2017.1,2017.0,0.99175]
[1743113302211,3.06944,2017.1,2017.0,0.99175]
[1743113302411,0.99174,2017.1,2017.0,2.37085]
[1743113304814,0.99174,2017.1,2017.0,1.3791]
[1743113305621,0.99174,2017.1,2017.0,2.37085]
[1743113305820,0.99174,2017.1,2017.0,1.3791]
[1743113306014,0.99174,2017.1,2017.0,2.37085]
[1743113307724,0.99174,2017.1,2017.0,1.3791]
[1743113308321,0.99175,2017.0,2016.9,3.2078]
[1743113308717,0.99175,2017.0,2016.9,4.19959]
[1743113308918,0.99175,2017.0,2016.9,5.62749]
[1743113313719,0.99175,2017.0,2016.9,7.05949]
[1743113314023,0.99175,2017.0,2016.9,6.34219]
[1743113314225,2.32285,2017.0,2016.9,5.3504]
[1743113314528,3.01115,2017.0,2016.9,6.34219]
[1743113315027,3.01115,2017.0,2016.9,5.3504]
[1743113315224,3.01115,2017.0,2016.9,6.34219]
[1743113315425,3.01115,2017.0,2016.9,5.3504]
[1743113315620,3.01115,2017.0,2016.9,6.34219]
[1743113315923,3.01115,2017.0,2016.9,1.432]
[1743113316125,0.99184,2016.8,2016.7,0.00743808]
[1743113317028,0.99184,2016.8,2016.7,0.99932808]
[1743113317230,0.99184,2016.8,2016.7,0.00743808]
[1743113317526,2.34994,2016.8,2016.7,1.33503808]
[1743113317728,2.34994,2016.8,2016.7,2.32692808]
[1743113318029,2.34994,2016.8,2016.7,1.33503808]
[1743113318730,2.34994,2016.8,2016.7,2.32692808]
[1743113318922,2.34994,2016.8,2016.7,1.33503808]
[1743113320225,2.34994,2016.8,2016.7,2.32692808]
[1743113320920,2.34994,2016.8,2016.7,2.04243808]
[1743113321115,0.99184,2016.8,2016.7,2.04243808]
[1743113321322,0.99184,2016.8,2016.7,3.03432808]
[1743113321723,2.31364,2016.8,2016.7,3.03432808]
[1743113323232,2.31364,2016.8,2016.7,2.04243808]
[1743113324329,2.31364,2016.8,2016.7,3.03432808]
[1743113326833,2.31364,2016.8,2016.7,3.68852477]
[1743113333549,0.99184,2016.8,2016.7,3.68852477]
[1743113334341,0.99184,2016.8,2016.7,4.40696494]
[1743113336547,0.99184,2016.8,2016.7,4.40751485]
[1743113340143,0.99184,2016.8,2016.7,3.41562485]
[1743113340343,0.99184,2016.8,2016.7,3.41593847]
[1743113340550,0.99184,2016.8,2016.7,3.68852477]
[1743113341243,0.99184,2016.8,2016.7,2.69663477]
[1743113341444,0.99184,2016.8,2016.7,3.68852477]
[1743113341645,0.99184,2016.8,2016.7,2.69663477]
[1743113342247,0.99184,2016.8,2016.7,3.68852477]
[1743113343147,0.99184,2016.8,2016.7,2.69663477]
[1743113353066,3.49184,2016.8,2016.7,0.65419669]
[1743113353257,0.99209,2016.3,2016.2,0.659]
[1743113353458,0.99214,2016.2,2016.1,0.6724]
[1743113353663,2.33764,2016.2,2016.1,1.39198557]
[1743113354166,2.33764,2016.2,2016.1,0.6724]
[1743113356258,2.33764,2016.2,2016.1,2.1165]
[1743113357170,2.33764,2016.2,2016.1,1.4441]
[1743113360574,0.99214,2016.2,2016.1,1.4441]
[1743113360871,2.43444,2016.2,2016.1,1.4441]
[1743113362674,2.43444,2016.2,2016.0,0.659]
[1743113362675,0.99219,2016.1,2016.0,0.659]
[1743113362979,3.75679,2016.1,2016.0,2.0982]
[1743113363179,3.75679,2016.1,2015.9,0.66323808]
[1743113363180,0.99224,2016.0,2015.9,0.00743808]
[1743113363383,5.55964,2016.0,2015.9,0.00743808]
[1743113373289,5.55964,2016.0,2015.9,8.08e-06]
[1743113373483,8.05964,2016.0,2015.9,8.08e-06]
[1743113373688,5.64116194,2016.0,2015.9,8.08e-06]
[1743113374888,5.55964,2016.0,2015.9,8.08e-06]
[1743113375090,5.64116262,2016.0,2015.9,8.08e-06]
[1743113375386,5.55964,2016.0,2015.9,8.08e-06]
[1743113375685,5.64116273,2016.0,2015.9,8.08e-06]
[1743113376679,5.64116529,2016.0,2015.9,8.08e-06]
[1743113378290,5.64116586,2016.0,2015.9,8.08e-06]
[1743113379891,5.64116213,2016.0,2015.9,8.08e-06]
[1743113383183,5.64116294,2016.0,2015.9,8.08e-06]
[1743113384790,5.55964,2016.0,2015.9,8.08e-06]
[1743113384998,5.64116199,2016.0,2015.9,8.08e-06]
[1743113388093,5.64116318,2016.0,2015.9,8.08e-06]
[1743113393589,5.64116356,2016.0,2015.9,8.08e-06]
[1743113395186,5.64116469,2016.0,2015.9,8.08e-06]
[1743113398401,5.55964,2016.0,2015.9,8.08e-06]
[1743113398694,5.64116861,2016.0,2015.9,8.08e-06]
[1743113400101,5.64116982,2016.0,2015.9,8.08e-06]
[1743113401392,0.99248,2015.5,2015.4,1.3019]
[1743113401596,7.43128,2015.5,2015.4,1.3019]
[1743113401799,4.22348,2015.5,2015.4,1.3019]
[1743113405805,7.43128,2015.5,2015.4,1.3019]
[1743113406703,4.22348,2015.5,2015.4,1.3019]
[1743113407806,0.99248,2015.5,2015.4,1.3019]
[1743113412908,4.20016,2015.8,2015.7,0.99238]
[1743113413310,4.20016,2015.8,2015.7,2.36356348]
[1743113413609,2.124,2015.8,2015.7,2.36356348]
[1743113413811,4.22332,2015.9,2015.8,0.99234]
[1743113414003,4.22332,2015.9,2015.8,2.34084]
[1743113414512,0.99232,2015.9,2015.8,2.34084]
[1743113418909,0.00743808,2016.2,2015.8,1.3485]
[1743113419112,0.99961808,2016.2,2016.1,3.2078]
[1743113419304,0.99961808,2016.2,2016.1,4.5373]
[1743113419614,0.99961808,2016.2,2016.1,5.52949]
[1743113420105,0.99961808,2016.2,2016.1,4.5373]
[1743113422414,0.99961808,2016.2,2016.1,5.1947]
[1743113425217,0.99961808,2016.2,2016.1,1.9869]
[1743113425717,0.99961808,2016.2,2016.1,1.3295]
[1743113426019,1.65271808,2016.2,2016.1,1.3295]
[1743113427619,2.31931808,2016.2,2016.1,1.3295]
[1743113433216,3.75921808,2016.2,2016.1,1.3295]
[1743113434824,0.99224,2016.0,2015.9,3.2078]
[1743113435020,0.99229,2015.9,2015.8,0.655]
[1743113436121,2.41419,2015.9,2015.8,0.655]
[1743113436524,2.41419,2015.9,2015.8,1.3681]
[1743113437223,2.41419,2015.9,2015.8,2.7657]
[1743113437724,2.41419,2015.9,2015.8,5.9735]
[1743113440423,2.41419,2015.9,2015.8,6.69325287]
[1743113440625,2.41419,2015.9,2015.8,8.3361688]
[1743113441019,2.41419,2015.9,2015.8,7.61641593]
[1743113441525,2.41419,2015.9,2015.8,8.33647129]
[1743113441917,2.41419,2015.9,2015.8,6.24831593]
[1743113442123,3.73259,2015.9,2015.8,5.25597593]
[1743113442323,3.73259,2015.9,2015.8,4.6054]
[1743113442522,3.73259,2015.9,2015.8,5.59774]
[1743113444320,3.73259,2015.9,2015.8,4.6054]
[1743113447632,3.73259,2015.9,2015.8,5.59774]